[Event "*** Titled Tuesday Blitz"]
[Site "Chess.com"]
[Date "2021.04.27"]
[Round "5"]
[White "grandcoach"]
[Black "ferch1ni"]
[Result "0-1"]
[WhiteElo "2236"]
[BlackElo "2362"]
[TimeControl "180+1"]
[EndTime "10:55:33 PDT"]
[Termination "ferch1ni won by resignation"]

1. e4 {[%clk 0:03:00.9]} 1... c5 {[%clk 0:03:00.2]} 2. b4 {[%clk 0:03:00.3]}
2... cxb4 {[%clk 0:02:59.4]} 3. a3 {[%clk 0:03:00.7]} 3... Nf6 {[%clk
0:02:57.8]} 4. e5 {[%clk 0:02:57.8]} 4... Nd5 {[%clk 0:02:58]} 5. Bb2 {[%clk
0:02:55.9]} 5... Nc6 {[%clk 0:02:57.1]} 6. Bc4 {[%clk 0:02:51.2]} 6... e6 {[%clk
0:02:50.9]} 7. Bxd5 {[%clk 0:02:48.5]} 7... exd5 {[%clk 0:02:51.8]} 8. Nf3
{[%clk 0:02:48.1]} 8... Bc5 {[%clk 0:02:28]} 9. O-O {[%clk 0:02:47]} 9... O-O
{[%clk 0:02:25.9]} 10. axb4 {[%clk 0:02:44.6]} 10... Bxb4 {[%clk 0:02:23.5]} 11.
Ra4 {[%clk 0:02:25.6]} 11... d6 {[%clk 0:02:05.8]} 12. exd6 {[%clk 0:02:16.5]}
12... Qxd6 {[%clk 0:01:57.4]} 13. Nc3 {[%clk 0:02:16.6]} 13... Bg4 {[%clk
0:01:54.3]} 14. h3 {[%clk 0:02:10.9]} 14... Bh5 {[%clk 0:01:53.3]} 15. Qa1
{[%clk 0:01:54.7]} 15... Bxf3 {[%clk 0:01:45.3]} 16. gxf3 {[%clk 0:01:55.6]}
16... f6 {[%clk 0:01:13.3]} 17. Ba3 {[%clk 0:01:40.1]} 17... Bxa3 {[%clk
0:01:05]} 18. Qxa3 {[%clk 0:01:41]} 18... Qd7 {[%clk 0:01:01.5]} 19. Qc5 {[%clk
0:01:37.1]} 19... Qxh3 {[%clk 0:00:56.7]} 20. Qxd5+ {[%clk 0:01:31.1]} 20... Kh8
{[%clk 0:00:55.5]} 21. Rb1 {[%clk 0:00:57.7]} 21... Ne5 {[%clk 0:00:52.1]} 22.
Rf4 {[%clk 0:00:51.4]} 22... Rad8 {[%clk 0:00:48.3]} 23. Qxb7 {[%clk 0:00:49.8]}
23... Rxd2 {[%clk 0:00:45]} 24. Qe7 {[%clk 0:00:30.7]} 24... Rg8 {[%clk
0:00:28.7]} 25. Rxf6 {[%clk 0:00:08.5]} 25... gxf6+ {[%clk 0:00:25.7]} 0-1

[Event "*** Titled Tuesday Blitz"]
[Site "Chess.com"]
[Date "2021.04.27"]
[Round "5"]
[White "mjray79"]
[Black "aaaao"]
[Result "1-0"]
[WhiteElo "2464"]
[BlackElo "2664"]
[TimeControl "180+1"]
[EndTime "10:55:34 PDT"]
[Termination "mjray79 won by resignation"]

1. d4 {[%clk 0:03:00.9]} 1... Nf6 {[%clk 0:02:45.8]} 2. c4 {[%clk 0:02:59.9]}
2... g6 {[%clk 0:02:46]} 3. Nc3 {[%clk 0:02:57.2]} 3... d5 {[%clk 0:02:45.9]} 4.
cxd5 {[%clk 0:02:58.1]} 4... Nxd5 {[%clk 0:02:45.9]} 5. e4 {[%clk 0:02:57.3]}
5... Nxc3 {[%clk 0:02:46.1]} 6. bxc3 {[%clk 0:02:58.2]} 6... Bg7 {[%clk
0:02:46.8]} 7. Bc4 {[%clk 0:02:55.4]} 7... O-O {[%clk 0:02:45.7]} 8. Be3 {[%clk
0:02:55]} 8... c5 {[%clk 0:02:46]} 9. Ne2 {[%clk 0:02:54.6]} 9... Qc7 {[%clk
0:02:44.3]} 10. Rc1 {[%clk 0:02:52.9]} 10... Nd7 {[%clk 0:02:41.5]} 11. O-O
{[%clk 0:02:52.3]} 11... Rb8 {[%clk 0:02:41.4]} 12. a4 {[%clk 0:02:47.5]} 12...
a6 {[%clk 0:02:41.1]} 13. Qd2 {[%clk 0:02:41.2]} 13... b5 {[%clk 0:02:40]} 14.
axb5 {[%clk 0:02:32]} 14... axb5 {[%clk 0:02:40]} 15. Bd3 {[%clk 0:02:32.3]}
15... e5 {[%clk 0:02:30]} 16. d5 {[%clk 0:02:30.3]} 16... Rd8 {[%clk 0:02:23.4]}
17. c4 {[%clk 0:02:25.6]} 17... b4 {[%clk 0:02:21.8]} 18. Bh6 {[%clk 0:02:25.6]}
18... Ra8 {[%clk 0:02:15.2]} 19. Bxg7 {[%clk 0:02:24.3]} 19... Kxg7 {[%clk
0:02:16.1]} 20. g3 {[%clk 0:02:14.8]} 20... Ra3 {[%clk 0:02:14.6]} 21. f4 {[%clk
0:02:14.6]} 21... f6 {[%clk 0:01:59.5]} 22. f5 {[%clk 0:02:09]} 22... g5 {[%clk
0:01:59.6]} 23. h4 {[%clk 0:02:09.3]} 23... h6 {[%clk 0:01:59.8]} 24. hxg5
{[%clk 0:02:09]} 24... hxg5 {[%clk 0:02:00.7]} 25. Kg2 {[%clk 0:02:08.9]} 25...
Qa5 {[%clk 0:01:59.6]} 26. Rh1 {[%clk 0:02:05.3]} 26... Nf8 {[%clk 0:01:58.6]}
27. g4 {[%clk 0:02:03.6]} 27... Bd7 {[%clk 0:01:51.1]} 28. Qe3 {[%clk
0:02:01.6]} 28... Be8 {[%clk 0:01:12.2]} 29. Qh3 {[%clk 0:01:38.5]} 29... Kf7
{[%clk 0:01:12]} 30. Qh8 {[%clk 0:01:22.4]} 30... Ke7 {[%clk 0:01:07.8]} 31. Rh6
{[%clk 0:01:16.2]} 31... Qb6 {[%clk 0:01:00.1]} 32. Bb1 {[%clk 0:01:03]} 32...
b3 {[%clk 0:00:43]} 33. Ng3 {[%clk 0:01:02.5]} 33... b2 {[%clk 0:00:42.7]} 34.
Rf1 {[%clk 0:01:01.7]} 34... Rc3 {[%clk 0:00:33.9]} 35. Nh5 {[%clk 0:00:58.2]}
35... Bxh5 {[%clk 0:00:33.7]} 36. gxh5 {[%clk 0:00:56.7]} 36... Rc1 {[%clk
0:00:18.9]} 37. Qg7+ {[%clk 0:00:54.5]} 37... Ke8 {[%clk 0:00:18.9]} 38. Rxf6
{[%clk 0:00:52.8]} 1-0

[Event "*** Titled Tuesday Blitz"]
[Site "Chess.com"]
[Date "2021.04.27"]
[Round "5"]
[White "AlexPapasimakopoulos"]
[Black "mapleaff"]
[Result "1-0"]
[WhiteElo "2567"]
[BlackElo "2393"]
[TimeControl "180+1"]
[EndTime "10:55:34 PDT"]
[Termination "AlexPapasimakopoulos won by resignation"]

1. d4 {[%clk 0:03:00.9]} 1... Nf6 {[%clk 0:02:59.7]} 2. c4 {[%clk 0:03:00.7]}
2... e6 {[%clk 0:03:00.2]} 3. Nc3 {[%clk 0:03:00.4]} 3... d5 {[%clk 0:03:00.5]}
4. cxd5 {[%clk 0:02:59.9]} 4... Nxd5 {[%clk 0:03:00.9]} 5. e4 {[%clk 0:02:59.7]}
5... Nxc3 {[%clk 0:02:56.8]} 6. bxc3 {[%clk 0:03:00.6]} 6... c5 {[%clk
0:02:57.2]} 7. Rb1 {[%clk 0:02:59.3]} 7... Be7 {[%clk 0:02:53.3]} 8. Nf3 {[%clk
0:02:59]} 8... O-O {[%clk 0:02:48.3]} 9. Bc4 {[%clk 0:02:59.4]} 9... Qc7 {[%clk
0:02:36.2]} 10. Qe2 {[%clk 0:02:57.2]} 10... Nc6 {[%clk 0:02:25.7]} 11. O-O
{[%clk 0:02:56.5]} 11... b6 {[%clk 0:02:22.2]} 12. Rd1 {[%clk 0:02:50.6]} 12...
cxd4 {[%clk 0:02:15.1]} 13. cxd4 {[%clk 0:02:50.6]} 13... Na5 {[%clk 0:02:13.9]}
14. Bd3 {[%clk 0:02:44.5]} 14... Bb7 {[%clk 0:02:07.1]} 15. Bd2 {[%clk
0:02:44.2]} 15... Rac8 {[%clk 0:02:01]} 16. h4 {[%clk 0:02:40.6]} 16... Rfd8
{[%clk 0:01:56.9]} 17. h5 {[%clk 0:02:40.3]} 17... h6 {[%clk 0:01:56.9]} 18. g3
{[%clk 0:02:28.5]} 18... Nc6 {[%clk 0:01:27.9]} 19. Rbc1 {[%clk 0:02:21.6]}
19... Qb8 {[%clk 0:01:25.8]} 20. Bf4 {[%clk 0:02:19.3]} 20... Bd6 {[%clk
0:01:23.6]} 21. Be3 {[%clk 0:02:17.3]} 21... e5 {[%clk 0:01:02.1]} 22. d5 {[%clk
0:02:13.9]} 22... Nd4 {[%clk 0:01:02.3]} 23. Nxd4 {[%clk 0:02:11]} 23... exd4
{[%clk 0:01:03.2]} 24. Rxc8 {[%clk 0:02:03.2]} 24... Bxc8 {[%clk 0:00:59.3]} 25.
Bxd4 {[%clk 0:02:03.1]} 25... Bxg3 {[%clk 0:00:58.8]} 26. fxg3 {[%clk 0:02:02]}
26... Qxg3+ {[%clk 0:00:59.3]} 27. Qg2 {[%clk 0:02:02.3]} 27... Qxg2+ {[%clk
0:00:47.7]} 28. Kxg2 {[%clk 0:02:03.2]} 28... Bg4 {[%clk 0:00:47.9]} 29. Rh1
{[%clk 0:01:56.3]} 29... f5 {[%clk 0:00:46.9]} 30. Kg3 {[%clk 0:01:53.4]} 30...
fxe4 {[%clk 0:00:45.2]} 31. Bxe4 {[%clk 0:01:54.3]} 31... Be2 {[%clk 0:00:44]}
32. Kf2 {[%clk 0:01:50.4]} 32... Bc4 {[%clk 0:00:44.1]} 33. Rg1 {[%clk
0:01:49.2]} 33... Bxd5 {[%clk 0:00:41.3]} 34. Rxg7+ {[%clk 0:01:48.2]} 34... Kf8
{[%clk 0:00:41.4]} 35. Bg6 {[%clk 0:01:42.1]} 35... Bxa2 {[%clk 0:00:34.3]} 36.
Bc3 {[%clk 0:01:31.6]} 36... a5 {[%clk 0:00:18.9]} 37. Rb7 {[%clk 0:01:30.6]}
37... Rd6 {[%clk 0:00:17.4]} 38. Bb2 {[%clk 0:01:26]} 38... Bd5 {[%clk
0:00:14.3]} 39. Ra7 {[%clk 0:01:23.8]} 39... Bc6 {[%clk 0:00:04.7]} 40. Ba3
{[%clk 0:01:23.4]} 40... b5 {[%clk 0:00:03.1]} 41. Bxd6+ {[%clk 0:01:24.3]}
41... Kg8 {[%clk 0:00:03.6]} 42. Be5 {[%clk 0:01:22.4]} 1-0

[Event "*** Titled Tuesday Blitz"]
[Site "Chess.com"]
[Date "2021.04.27"]
[Round "5"]
[White "MerryPoppies"]
[Black "Kale36"]
[Result "0-1"]
[WhiteElo "2089"]
[BlackElo "2272"]
[TimeControl "180+1"]
[EndTime "10:55:36 PDT"]
[Termination "Kale36 won on time"]

1. d4 {[%clk 0:03:00.9]} 1... c5 {[%clk 0:02:53.4]} 2. e3 {[%clk 0:02:59.4]}
2... e6 {[%clk 0:02:52.7]} 3. c3 {[%clk 0:02:59.2]} 3... b6 {[%clk 0:02:52.6]}
4. Nf3 {[%clk 0:02:59.3]} 4... Bb7 {[%clk 0:02:52.8]} 5. Be2 {[%clk 0:02:59.6]}
5... Nf6 {[%clk 0:02:53.1]} 6. O-O {[%clk 0:02:59.8]} 6... d5 {[%clk 0:02:52.8]}
7. Nbd2 {[%clk 0:02:58.5]} 7... Bd6 {[%clk 0:02:52.9]} 8. b3 {[%clk 0:02:58.5]}
8... Qc7 {[%clk 0:02:52.9]} 9. Bb2 {[%clk 0:02:57.4]} 9... Nc6 {[%clk
0:02:53.1]} 10. Rc1 {[%clk 0:02:57.3]} 10... O-O {[%clk 0:02:47.7]} 11. h3
{[%clk 0:02:55.3]} 11... e5 {[%clk 0:02:44.7]} 12. dxe5 {[%clk 0:02:51.3]} 12...
Nxe5 {[%clk 0:02:44.6]} 13. c4 {[%clk 0:02:49.2]} 13... Rad8 {[%clk 0:02:31.9]}
14. Qc2 {[%clk 0:02:38.4]} 14... Rfe8 {[%clk 0:02:22.8]} 15. Nxe5 {[%clk
0:02:11]} 15... Bxe5 {[%clk 0:02:22.7]} 16. Nf3 {[%clk 0:02:11.4]} 16... Bxb2
{[%clk 0:02:16.1]} 17. Qxb2 {[%clk 0:02:12.3]} 17... Ne4 {[%clk 0:01:51.8]} 18.
Rfd1 {[%clk 0:02:00.5]} 18... Qe7 {[%clk 0:01:38.4]} 19. cxd5 {[%clk 0:01:43.9]}
19... Bxd5 {[%clk 0:01:34.5]} 20. Bc4 {[%clk 0:01:37]} 20... Bxc4 {[%clk
0:01:31.5]} 21. Rxd8 {[%clk 0:01:35.2]} 21... Rxd8 {[%clk 0:01:29.5]} 22. Rxc4
{[%clk 0:01:22.9]} 22... Rd1+ {[%clk 0:01:26.1]} 23. Kh2 {[%clk 0:01:22.7]}
23... Qd6+ {[%clk 0:01:22.9]} 24. g3 {[%clk 0:01:16.9]} 24... Nd2 {[%clk
0:01:11.6]} 25. Nxd2 {[%clk 0:00:45.8]} 25... Rxd2 {[%clk 0:01:11.6]} 26. Rc2
{[%clk 0:00:09.8]} 26... Rd1 {[%clk 0:01:06.8]} 27. Re2 {[%clk 0:00:07.8]} 27...
Qd5 {[%clk 0:01:05.3]} 28. e4 {[%clk 0:00:06.4]} 28... Qd3 {[%clk 0:01:00.5]}
29. Qc2 {[%clk 0:00:04.4]} 29... Qd4 {[%clk 0:00:47.6]} 30. Kg2 {[%clk
0:00:04.3]} 30... g6 {[%clk 0:00:45.2]} 31. h4 {[%clk 0:00:02.3]} 31... h5
{[%clk 0:00:44.8]} 32. Kf3 {[%clk 0:00:02.3]} 32... b5 {[%clk 0:00:43]} 0-1

[Event "*** Titled Tuesday Blitz"]
[Site "Chess.com"]
[Date "2021.04.27"]
[Round "5"]
[White "Harald_Schmidt"]
[Black "LifeIsAllAboutChess23"]
[Result "0-1"]
[WhiteElo "2313"]
[BlackElo "2210"]
[TimeControl "180+1"]
[EndTime "10:55:38 PDT"]
[Termination "LifeIsAllAboutChess23 won by resignation"]

1. e4 {[%clk 0:03:00.5]} 1... g6 {[%clk 0:02:48.7]} 2. h4 {[%clk 0:02:50.1]}
2... d5 {[%clk 0:02:46.8]} 3. exd5 {[%clk 0:02:46.3]} 3... Qxd5 {[%clk
0:02:45.7]} 4. Nc3 {[%clk 0:02:45.9]} 4... Qd8 {[%clk 0:02:43.6]} 5. h5 {[%clk
0:02:45.4]} 5... Bg7 {[%clk 0:02:42.1]} 6. d3 {[%clk 0:02:44.9]} 6... Nc6 {[%clk
0:02:39]} 7. Bf4 {[%clk 0:02:41.9]} 7... a6 {[%clk 0:02:35]} 8. Qd2 {[%clk
0:02:41.1]} 8... Be6 {[%clk 0:02:33.9]} 9. Nf3 {[%clk 0:02:36.6]} 9... h6 {[%clk
0:01:36.1]} 10. hxg6 {[%clk 0:02:34.7]} 10... fxg6 {[%clk 0:01:34.1]} 11. g3
{[%clk 0:02:29.4]} 11... Qd7 {[%clk 0:01:30]} 12. Bg2 {[%clk 0:02:28.2]} 12...
O-O-O {[%clk 0:01:29]} 13. O-O-O {[%clk 0:02:20.3]} 13... Nf6 {[%clk 0:01:22.6]}
14. Bxh6 {[%clk 0:02:14.1]} 14... Bxh6 {[%clk 0:01:14.7]} 15. Rxh6 {[%clk
0:02:13.4]} 15... Bf5 {[%clk 0:01:14]} 16. Rxh8 {[%clk 0:02:02]} 16... Rxh8
{[%clk 0:01:14.9]} 17. Nh4 {[%clk 0:02:01.6]} 17... Ng4 {[%clk 0:01:02.6]} 18.
Re1 {[%clk 0:01:45.3]} 18... e5 {[%clk 0:00:56]} 19. Be4 {[%clk 0:01:30.9]}
19... Nd4 {[%clk 0:00:46.3]} 20. Bg2 {[%clk 0:01:21.5]} 20... Qd6 {[%clk
0:00:20]} 21. f3 {[%clk 0:01:18.8]} 21... Nf6 {[%clk 0:00:17.2]} 22. Ne4 {[%clk
0:01:13.7]} 22... Bxe4 {[%clk 0:00:16.4]} 23. dxe4 {[%clk 0:01:09.4]} 23... Rd8
{[%clk 0:00:14.3]} 24. Qc3 {[%clk 0:00:48.6]} 24... Ne2+ {[%clk 0:00:12.5]} 25.
Kb1 {[%clk 0:00:43.2]} 25... Nxc3+ {[%clk 0:00:12.5]} 26. bxc3 {[%clk
0:00:42.9]} 26... Qb6+ {[%clk 0:00:12.8]} 27. Kc1 {[%clk 0:00:41.9]} 27... Qf2
{[%clk 0:00:12.7]} 28. Rh1 {[%clk 0:00:37.8]} 28... Rd2 {[%clk 0:00:12]} 0-1

[Event "*** Titled Tuesday Blitz"]
[Site "Chess.com"]
[Date "2021.04.27"]
[Round "5"]
[White "H3nriqueTV"]
[Black "mary-sanna"]
[Result "1-0"]
[WhiteElo "2320"]
[BlackElo "2133"]
[TimeControl "180+1"]
[EndTime "10:55:40 PDT"]
[Termination "H3nriqueTV won by checkmate"]

1. e4 {[%clk 0:02:46.4]} 1... c5 {[%clk 0:02:59.9]} 2. Nf3 {[%clk 0:02:44.3]}
2... Nc6 {[%clk 0:03:00.3]} 3. Nc3 {[%clk 0:02:33.5]} 3... g6 {[%clk 0:02:58.4]}
4. d4 {[%clk 0:02:33.5]} 4... cxd4 {[%clk 0:02:58.2]} 5. Nxd4 {[%clk 0:02:34.4]}
5... Bg7 {[%clk 0:02:58.4]} 6. Be3 {[%clk 0:02:35.1]} 6... Nf6 {[%clk 0:02:58]}
7. Bc4 {[%clk 0:02:35.8]} 7... O-O {[%clk 0:02:58]} 8. f3 {[%clk 0:02:36.2]}
8... d6 {[%clk 0:02:52.3]} 9. Qd2 {[%clk 0:02:33.4]} 9... Bd7 {[%clk 0:02:51.5]}
10. Bb3 {[%clk 0:02:33.9]} 10... Nxd4 {[%clk 0:02:48.9]} 11. Bxd4 {[%clk
0:02:33.4]} 11... b5 {[%clk 0:02:49.5]} 12. h4 {[%clk 0:02:32.2]} 12... a5
{[%clk 0:02:47.3]} 13. h5 {[%clk 0:02:31.5]} 13... Nxh5 {[%clk 0:02:38.9]} 14.
Bxg7 {[%clk 0:02:17.2]} 14... Kxg7 {[%clk 0:02:34.5]} 15. g4 {[%clk 0:02:15.2]}
15... h6 {[%clk 0:02:04.8]} 16. gxh5 {[%clk 0:02:14.1]} 16... g5 {[%clk
0:02:04.8]} 17. O-O-O {[%clk 0:02:10.7]} 17... Be6 {[%clk 0:02:01]} 18. Bd5
{[%clk 0:02:05.5]} 18... b4 {[%clk 0:01:53.3]} 19. Ne2 {[%clk 0:02:04.5]} 19...
Rc8 {[%clk 0:01:48.4]} 20. f4 {[%clk 0:02:02.1]} 20... Bxd5 {[%clk 0:01:44.6]}
21. Qxd5 {[%clk 0:02:01]} 21... Qc7 {[%clk 0:01:34.8]} 22. Qd3 {[%clk
0:01:57.2]} 22... Qc4 {[%clk 0:01:26.6]} 23. fxg5 {[%clk 0:01:56.1]} 23... Qxd3
{[%clk 0:01:24.1]} 24. gxh6+ {[%clk 0:01:55.5]} 24... Kxh6 {[%clk 0:01:23.4]}
25. Rxd3 {[%clk 0:01:56.1]} 25... Rg8 {[%clk 0:01:19.2]} 26. Nd4 {[%clk
0:01:55.7]} 26... Rg5 {[%clk 0:01:06.4]} 27. Nf5+ {[%clk 0:01:53.7]} 27... Kh7
{[%clk 0:01:02.7]} 28. Nxe7 {[%clk 0:01:52.4]} 28... Rc4 {[%clk 0:01:01.1]} 29.
Nd5 {[%clk 0:01:47.9]} 29... Rg2 {[%clk 0:00:52.9]} 30. Rd2 {[%clk 0:01:45]}
30... Rxd2 {[%clk 0:00:30.5]} 31. Kxd2 {[%clk 0:01:44.5]} 31... Kh6 {[%clk
0:00:31.1]} 32. Kd3 {[%clk 0:01:43.2]} 32... Rc8 {[%clk 0:00:28.8]} 33. Rf1
{[%clk 0:01:43.3]} 33... Kxh5 {[%clk 0:00:26.7]} 34. Rxf7 {[%clk 0:01:42.9]}
34... Kg4 {[%clk 0:00:22.5]} 35. Rf6 {[%clk 0:01:37]} 35... Rc6 {[%clk
0:00:17.7]} 36. e5 {[%clk 0:01:35.3]} 36... Kg5 {[%clk 0:00:16.8]} 37. Rxd6
{[%clk 0:01:35.4]} 37... Rc5 {[%clk 0:00:16]} 38. c4 {[%clk 0:01:33.8]} 38...
bxc3 {[%clk 0:00:15.5]} 39. bxc3 {[%clk 0:01:34.7]} 39... Kf5 {[%clk 0:00:14.8]}
40. Kd4 {[%clk 0:01:34.7]} 40... Rb5 {[%clk 0:00:12.9]} 41. Ne7+ {[%clk
0:01:34.9]} 41... Kf4 {[%clk 0:00:12.6]} 42. Rd5 {[%clk 0:01:34.7]} 42... Rb7
{[%clk 0:00:11.6]} 43. Nc6 {[%clk 0:01:34.6]} 43... Rc7 {[%clk 0:00:10.4]} 44.
Nxa5 {[%clk 0:01:34.6]} 44... Kf5 {[%clk 0:00:09.6]} 45. Nc4 {[%clk 0:01:34]}
45... Ke6 {[%clk 0:00:09.6]} 46. Rd6+ {[%clk 0:01:34]} 46... Ke7 {[%clk
0:00:09.8]} 47. Kd5 {[%clk 0:01:34.4]} 47... Ra7 {[%clk 0:00:09.6]} 48. a3
{[%clk 0:01:33.8]} 48... Ra4 {[%clk 0:00:09.6]} 49. e6 {[%clk 0:01:32.8]} 49...
Ra8 {[%clk 0:00:09.1]} 50. Rd7+ {[%clk 0:01:32.8]} 50... Ke8 {[%clk 0:00:09.1]}
51. Nd6+ {[%clk 0:01:31.4]} 51... Kf8 {[%clk 0:00:08.6]} 52. e7+ {[%clk
0:01:30.2]} 52... Kg7 {[%clk 0:00:08.1]} 53. e8=Q+ {[%clk 0:01:30.6]} 53... Kf6
{[%clk 0:00:07.2]} 54. Qf7+ {[%clk 0:01:30.1]} 54... Kg5 {[%clk 0:00:07.9]} 55.
Qf5+ {[%clk 0:01:29.6]} 55... Kh6 {[%clk 0:00:07.6]} 56. Rh7# {[%clk 0:01:30]}
1-0

[Event "*** Titled Tuesday Blitz"]
[Site "Chess.com"]
[Date "2021.04.27"]
[Round "5"]
[White "gxbg2000"]
[Black "AniJak"]
[Result "0-1"]
[WhiteElo "1959"]
[BlackElo "2291"]
[TimeControl "180+1"]
[EndTime "10:55:42 PDT"]
[Termination "AniJak won by resignation"]

1. e4 {[%clk 0:03:00.9]} 1... c5 {[%clk 0:02:58.9]} 2. f4 {[%clk 0:02:59.5]}
2... d5 {[%clk 0:02:58]} 3. exd5 {[%clk 0:02:57.9]} 3... Qxd5 {[%clk 0:02:57.6]}
4. Nf3 {[%clk 0:02:58.8]} 4... Nc6 {[%clk 0:02:57.2]} 5. Nc3 {[%clk 0:02:58.5]}
5... Qd8 {[%clk 0:02:56.3]} 6. d3 {[%clk 0:02:58.1]} 6... Nf6 {[%clk 0:02:56.1]}
7. Be3 {[%clk 0:02:58.1]} 7... b6 {[%clk 0:02:53.6]} 8. h3 {[%clk 0:02:58.2]}
8... e6 {[%clk 0:02:52.7]} 9. Be2 {[%clk 0:02:57.4]} 9... Bd6 {[%clk 0:02:52.2]}
10. O-O {[%clk 0:02:57]} 10... O-O {[%clk 0:02:51.4]} 11. Qd2 {[%clk 0:02:56.8]}
11... Bb7 {[%clk 0:02:50.3]} 12. Bf2 {[%clk 0:02:56.3]} 12... Qc7 {[%clk
0:02:49.2]} 13. Bg3 {[%clk 0:02:53]} 13... Nh5 {[%clk 0:02:45.6]} 14. Bh2 {[%clk
0:02:52.9]} 14... Nxf4 {[%clk 0:02:43.4]} 15. Kh1 {[%clk 0:02:45.7]} 15... Nxe2
{[%clk 0:02:36.2]} 16. Bxd6 {[%clk 0:02:36.4]} 16... Qxd6 {[%clk 0:02:37.1]} 17.
Qxe2 {[%clk 0:02:31.5]} 17... Nd4 {[%clk 0:02:36.2]} 18. Nxd4 {[%clk 0:02:30.2]}
18... cxd4 {[%clk 0:02:36.4]} 19. Ne4 {[%clk 0:02:30]} 19... Bxe4 {[%clk
0:02:34.7]} 20. Qxe4 {[%clk 0:02:29.3]} 20... Rac8 {[%clk 0:02:32.9]} 21. Rf2
{[%clk 0:02:28]} 21... Rc5 {[%clk 0:02:25.8]} 22. Raf1 {[%clk 0:02:27.4]} 22...
f6 {[%clk 0:02:25.5]} 23. Qg4 {[%clk 0:02:25]} 23... Rg5 {[%clk 0:02:21.9]} 24.
Qh4 {[%clk 0:02:17.7]} 24... Rc8 {[%clk 0:02:14.5]} 25. a3 {[%clk 0:02:06.3]}
25... Rgc5 {[%clk 0:02:03.3]} 26. Qg4 {[%clk 0:01:55.2]} 26... Rg5 {[%clk
0:01:56.9]} 27. Qh4 {[%clk 0:01:52]} 27... h6 {[%clk 0:01:53]} 28. Qe4 {[%clk
0:01:46.5]} 28... Qd5 {[%clk 0:01:47.8]} 29. Qf4 {[%clk 0:01:34.6]} 29... Rf5
{[%clk 0:01:44.6]} 30. Qg4 {[%clk 0:01:31.6]} 30... Rxf2 {[%clk 0:01:34.4]} 31.
Rxf2 {[%clk 0:01:31.2]} 31... Qe5 {[%clk 0:01:34.3]} 32. Re2 {[%clk 0:01:27]}
32... Qf5 {[%clk 0:01:23.7]} 33. Qf3 {[%clk 0:01:16.2]} 33... Qxf3 {[%clk
0:01:22.5]} 34. gxf3 {[%clk 0:01:16.5]} 34... Kf7 {[%clk 0:01:23.2]} 35. Kg2
{[%clk 0:01:16.5]} 35... e5 {[%clk 0:01:23.1]} 36. Kg3 {[%clk 0:01:17.4]} 36...
Ke6 {[%clk 0:01:22.8]} 37. f4 {[%clk 0:01:17.1]} 37... Kf5 {[%clk 0:01:21.7]}
38. fxe5 {[%clk 0:01:16.3]} 38... fxe5 {[%clk 0:01:22.1]} 39. Rf2+ {[%clk
0:01:15.3]} 39... Ke6 {[%clk 0:01:22.4]} 40. Kg4 {[%clk 0:01:15.6]} 40... g6
{[%clk 0:01:21.7]} 41. h4 {[%clk 0:01:14]} 41... Rc7 {[%clk 0:01:22]} 42. h5
{[%clk 0:01:13.2]} 42... g5 {[%clk 0:01:17.8]} 43. Rf8 {[%clk 0:01:06.1]} 43...
Rxc2 {[%clk 0:01:17.3]} 44. Rh8 {[%clk 0:01:03.8]} 44... Rg2+ {[%clk 0:01:08.9]}
45. Kf3 {[%clk 0:01:02.8]} 45... Rh2 {[%clk 0:01:09.3]} 46. Rxh6+ {[%clk
0:01:01.4]} 46... Kf5 {[%clk 0:01:09.5]} 47. Kg3 {[%clk 0:00:58.1]} 47... Rd2
{[%clk 0:01:07]} 48. Rh8 {[%clk 0:00:54.8]} 48... Rxd3+ {[%clk 0:01:07.2]} 49.
Kf2 {[%clk 0:00:55.4]} 49... Rh3 {[%clk 0:01:03.1]} 50. Kg2 {[%clk 0:00:55.1]}
50... Rh4 {[%clk 0:01:02.7]} 51. Kg3 {[%clk 0:00:55.1]} 51... d3 {[%clk
0:01:02.5]} 52. Rd8 {[%clk 0:00:52.8]} 52... Ke4 {[%clk 0:01:01.8]} 53. Rh8
{[%clk 0:00:46.3]} 53... d2 {[%clk 0:01:00.8]} 54. Rd8 {[%clk 0:00:45.5]} 54...
Ke3 {[%clk 0:01:01]} 55. b4 {[%clk 0:00:41.9]} 55... Rd4 {[%clk 0:00:59.8]} 0-1

[Event "*** Titled Tuesday Blitz"]
[Site "Chess.com"]
[Date "2021.04.27"]
[Round "5"]
[White "Durarbayli"]
[Black "HonzaVykouk"]
[Result "0-1"]
[WhiteElo "2736"]
[BlackElo "2595"]
[TimeControl "180+1"]
[EndTime "10:55:44 PDT"]
[Termination "HonzaVykouk won by checkmate"]

1. e4 {[%clk 0:03:00.9]} 1... c5 {[%clk 0:02:59.7]} 2. Nf3 {[%clk 0:02:53.4]}
2... d6 {[%clk 0:02:59.5]} 3. d4 {[%clk 0:02:52.9]} 3... cxd4 {[%clk 0:03:00.4]}
4. Nxd4 {[%clk 0:02:53.6]} 4... Nf6 {[%clk 0:03:01.1]} 5. Nc3 {[%clk 0:02:54.1]}
5... a6 {[%clk 0:03:01.8]} 6. Bg5 {[%clk 0:02:46.9]} 6... e6 {[%clk 0:03:01.7]}
7. f4 {[%clk 0:02:46]} 7... h6 {[%clk 0:03:02.3]} 8. Bh4 {[%clk 0:02:45.3]} 8...
Qb6 {[%clk 0:03:03]} 9. a3 {[%clk 0:02:45.6]} 9... Nbd7 {[%clk 0:03:03.5]} 10.
Bf2 {[%clk 0:02:45.2]} 10... Qc7 {[%clk 0:03:04.2]} 11. g4 {[%clk 0:02:41.3]}
11... b5 {[%clk 0:03:05.1]} 12. Bg2 {[%clk 0:02:40.9]} 12... Bb7 {[%clk
0:03:05]} 13. O-O {[%clk 0:02:40]} 13... g5 {[%clk 0:03:04.3]} 14. f5 {[%clk
0:02:38.2]} 14... e5 {[%clk 0:03:04.2]} 15. Ne6 {[%clk 0:02:26.5]} 15... fxe6
{[%clk 0:03:04.1]} 16. fxe6 {[%clk 0:02:27.4]} 16... Nc5 {[%clk 0:03:03.8]} 17.
Nd5 {[%clk 0:02:24]} 17... Bxd5 {[%clk 0:02:53.1]} 18. exd5 {[%clk 0:02:24.9]}
18... Be7 {[%clk 0:02:52.2]} 19. b4 {[%clk 0:02:09.5]} 19... Nce4 {[%clk
0:02:48.2]} 20. Qd3 {[%clk 0:02:08.2]} 20... Nxf2 {[%clk 0:02:39.4]} 21. Qg6+
{[%clk 0:02:07.6]} 21... Kd8 {[%clk 0:02:35.2]} 22. Rxf2 {[%clk 0:02:04.4]}
22... Nxg4 {[%clk 0:02:35.2]} 23. Rf7 {[%clk 0:01:48.3]} 23... Qb6+ {[%clk
0:02:08.6]} 24. Kh1 {[%clk 0:01:31.8]} 24... Nf2+ {[%clk 0:01:39.1]} 25. Kg1
{[%clk 0:01:29.6]} 25... Nh3+ {[%clk 0:01:39.7]} 26. Kh1 {[%clk 0:01:29.6]}
26... Nf4 {[%clk 0:01:35.2]} 27. Qg7 {[%clk 0:01:24.2]} 27... Re8 {[%clk
0:01:35.4]} 28. Be4 {[%clk 0:01:10.8]} 28... Qe3 {[%clk 0:01:32.4]} 29. Qh7
{[%clk 0:00:49.8]} 29... g4 {[%clk 0:01:28.4]} 30. Rg1 {[%clk 0:00:43]} 30... h5
{[%clk 0:01:26.1]} 31. Rg3 {[%clk 0:00:37.4]} 31... Qe1+ {[%clk 0:01:23.6]} 32.
Rg1 {[%clk 0:00:37.3]} 32... Qe3 {[%clk 0:01:19.3]} 33. Rg3 {[%clk 0:00:24.7]}
33... Qf2 {[%clk 0:01:19.3]} 34. Rg1 {[%clk 0:00:19.9]} 34... Rc8 {[%clk
0:01:10.1]} 35. Qf5 {[%clk 0:00:13.7]} 35... Rxc2 {[%clk 0:01:03.7]} 36. Bg2
{[%clk 0:00:05.8]} 36... Nh3 {[%clk 0:00:47.5]} 37. Qh7 {[%clk 0:00:03.6]} 37...
Qxg1# {[%clk 0:00:46.3]} 0-1